Workbook

Sheet Suppl Figure 4a
A1: TPA023B 1uM | B1: alpha2(H101R)beta3gamma2
B3: cell1 | C3: % I GABA potentiation | D3: cell2 | E3: % I GABA potentiation | F3: cell3 | G3: % I GABA potentiation | H3: cell4 | I3: % I GABA potentiation | J3: cell5 | K3: % I GABA potentiation
A4: EC5-10 (pA) | B4: =AVERAGE(170,250,255) -> 225 | C4: =(B4/B4)*100-100 -> 0 | D4: =AVERAGE(44,52,53) -> 49.66666667 | E4: =(D4/D4)*100-100 -> 0 | F4: =AVERAGE(73,69,75) -> 72.33333333 | G4: =(F4/F4)*100-100 -> 0 | H4: =AVERAGE(100,80,87) -> 89 | I4: =(H4/H4)*100-100 -> 0 | J4: =AVERAGE(105,97,102) -> 101.3333333 | K4: =(J4/J4)*100-100 -> 0
A5: 1 uM (pA) | B5: 255 | C5: =(B5/B4)*100-100 -> 13.33333333 | D5: 52 | E5: =(D5/D4)*100-100 -> 4.697986577 | F5: 76 | G5: =(F5/F4)*100-100 -> 5.069124424 | H5: 82 | I5: =(H5/H4)*100-100 -> -7.865168539 | J5: 102 | K5: =(J5/J4)*100-100 -> 0.6578947368
A7: EC100 (pA) | B7: 2510 | D7: 1340 | F7: 2650 | H7: 1820 | J7: 2190

Sheet Supple Figure 4b
B1: Competition of 3HRo 15-4513 binding to a1,2,3,5(H->R) mice
B3: Drug (M) | E3: Diazepam (% Binding) | J3: Bretazenil (% Binding) | O3: TPA023B (% Binding)
B5: 1e-09 | D5: 89 | E5: 92 | F5: 99 | G5: 86 | I5: 88 | J5: 94 | K5: 92 | L5: 86 | N5: 95 | O5: 95 | P5: 99 | Q5: 96
B6: 2.5e-09 | D6: 95 | E6: 91 | F6: 101 | I6: 100 | J6: 98 | K6: 105 | N6: 97 | O6: 101 | P6: 92 | Q6: 100
B7: 1e-08 | D7: 92 | E7: 88 | F7: 116 | G7: 79 | I7: 92 | J7: 85 | K7: 83 | L7: 68 | N7: 97 | O7: 89 | P7: 96 | Q7: 106
B8: 2.5e-08 | D8: 100 | E8: 114 | F8: 103 | G8: 95 | I8: 84 | J8: 78 | K8: 84 | L8: 83 | N8: 94 | O8: 94 | P8: 102 | Q8: 106
B9: 1e-07 | D9: 86 | E9: 99 | F9: 94 | G9: 112 | I9: 29 | J9: 35 | K9: 33 | L9: 34 | N9: 88 | O9: 112 | P9: 89 | Q9: 95
B10: 2.5e-07 | D10: 86 | E10: 92 | F10: 106 | G10: 94 | I10: 16 | J10: 15 | K10: 16 | L10: 15 | N10: 86 | O10: 103 | P10: 84 | Q10: 94
B11: 1e-06 | D11: 86 | E11: 95 | F11: 106 | G11: 105 | I11: 19 | J11: 1 | K11: 5 | L11: 3 | N11: 96 | O11: 102 | P11: 87 | Q11: 87
B13: mean | D13: =AVERAGE(D5:D11) -> 90.57142857 | E13: =AVERAGE(E5:E11) -> 95.85714286 | F13: 103.5714286 | G13: 95.16666667 | I13: =AVERAGE(I5:I11) -> 61.14285714 | J13: =AVERAGE(J5:J11) -> 58 | K13: 59.71428571 | L13: 48.16666667 | N13: =AVERAGE(N5:N11) -> 93.28571429 | O13: 99.42857143 | P13: 92.71428571 | Q13: 97.71428571
B14: SD | D14: =STDEV(D5:D11) -> 5.411627693 | E14: =STDEV(E5:E11) -> 8.706866475 | F14: 6.900655593 | G14: 12.05680997 | I14: =STDEV(I5:I11) -> 37.75547895 | J14: =STDEV(J5:J11) -> 40.10818703 | K14: 40.50396806 | L14: 35.71787601 | N14: =STDEV(N5:N11) -> 4.461475306 | O14: 7.502380575 | P14: 6.575568054 | Q14: 6.848705126
B15: n | D15: =COUNT(D5:D11) -> 7 | E15: =COUNT(E5:E11) -> 7 | F15: 7 | G15: 6 | I15: =COUNT(I5:I11) -> 7 | J15: =COUNT(J5:J11) -> 7 | K15: 7 | L15: 6 | N15: =COUNT(N5:N11) -> 7 | O15: 7 | P15: 7 | Q15: 7
B16: SEM | D16: =D14/(D15) -> 0.7730896704 | E16: =E14/(E15) -> 1.243838068 | F16: 0.9858079419 | G16: 2.009468328 | I16: =I14/(I15) -> 5.393639849 | J16: =J14/(J15) -> 5.729741004 | K16: 5.786281151 | L16: 5.952979335 | N16: 0.6373536151 | O16: =O14/(O15) -> 1.071768654 | P16: =P14/(P15) -> 0.9393668649 | Q16: =Q14/(Q15) -> 0.9783864466
